[Event "GER-chT Youth Countries 2018"]
[Site "Wurzburg"]
[Date "2018.10.03"]
[Round "1"]
[White "von Krosigk, Florian"]
[Black "Arakelian, Aik"]
[Result "1-0"]
[ECO "C50"]
[WhiteElo "1897"]
[BlackElo "1879"]
[Annotator "NA"]
[PlyCount "89"]
[EventDate "2018.10.03"]
[EventType "team-tourn"]
[EventCountry "GER"]
[SourceTitle "playchess.com"]
[Source "ChessBase"]
[SourceQuality "1"]
[TimeControl "40/5400+30:1800+30"]

1. e4 e5 2. Nf3 Nc6 3. Bc4 Nf6 4. d3 Bc5 5. O-O d6 6. c3 Bb6 7. Nbd2 O-O 8. Bb3 a6 9. h3 Be6 10. Bc2 h6 11. Re1 Re8 12. Nf1 d5 13. exd5 Nxd5 14. Ne3 Nf4 15. Ng4 Bxg4 16. hxg4 Qf6 17. Bxf4 Qxf4 18. Re4 Qf6 19. Qe2 Re7 20. Re1 Ba7 21. d4 Rae8 22. d5 Nb8 23. c4 Bc5 24. a3 a5 25. Qd2 Qb6 26. Rxe5 Rxe5 27. Rxe5 Rxe5 28. Nxe5 Bd4 29. Nd3 Nd7 30. b4 axb4 31. axb4 Nf6 32. c5 Qa6 33. Nf4 Qa1+ 34. Qd1 Nxg4 35. Qxa1 Bxa1 36. Be4 g5 37. Nd3 Nf6 38. d6 c6 39. Bf5 Nd5 40. Bc8 b6 41. Bb7 bxc5 42. bxc5 Kf8 43. Bxc6 Nf6 44. Ba4 Nd5 45. c6 1-0

[Event "GER-chT Youth Countries 2018"]
[Site "Wurzburg"]
[Date "2018.10.03"]
[Round "1"]
[White "Bui, Ngoc Han Julia"]
[Black "Halas, Julia"]
[Result "1-0"]
[ECO "C11"]
[WhiteElo "1876"]
[BlackElo "1972"]
[Annotator "NA"]
[PlyCount "69"]
[EventDate "2018.10.03"]
[EventType "team-tourn"]
[EventCountry "GER"]
[SourceTitle "playchess.com"]
[Source "ChessBase"]
[SourceQuality "1"]
[TimeControl "40/5400+30:1800+30"]

1. e4 {[%emt 0:00:00]} e6 {[%emt 0:00:00]} 2. d4 {[%emt 0:00:00]} d5 {[%emt 0:00:00]} 3. Nc3 {[%emt 0:00:00]} Nf6 {[%emt 0:00:00]} 4. e5 {[%emt 0:00:00]} Nfd7 {[%emt 0:00:00]} 5. f4 {[%emt 0:00:04]} c5 {[%emt 0:00:02]} 6. Nf3 {[%emt 0:00:14]} Nc6 {[%emt 0:00:11]} 7. Be3 {[%emt 0:00:31]} Be7 {[%emt 0:00:07]} 8. Qd2 {[%emt 0:00:13]} O-O {[%emt 0:00:07]} 9. dxc5 {[%emt 0:00:25]} Qa5 {[%emt 0:00:37]} 10. O-O-O {[%emt 0:00:37]} b6 {[%emt 0:00:19]} 11. Bb5 {[%emt 0:01:32]} Bb7 {[%emt 0:00:06]} 12. Kb1 {[%emt 0:01:03]} Kh8 {[%emt 0:00:14]} 13. cxb6 {[%emt 0:00:27]} axb6 {[%emt 0:01:38]} 14. Nd4 {[%emt 0:01:53]} Rfc8 {[%emt 0:01:11]} 15. Nb3 {[%emt 0:01:26]} Qa7 {[%emt 0:00:30]} 16. a3 {[%emt 0:07:31]} Nc5 {[%emt 0:04:28]} 17. Bxc6 {[%emt 0:10:34]} Bxc6 {[%emt 0:01:13]} 18. Qf2 {[%emt 0:03:31]} Qb7 {[%emt 0:12:24]} 19. Bd4 {[%emt 0:27:33]} Na4 {[%emt 0:45:12]} 20. Nxa4 {[%emt 0:06:59]} Bxa4 {[%emt 0:00:30]} 21. f5 {[%emt 0:05:55]} Qc6 {[%emt 0:25:51]} 22. f6 {[%emt 0:04:50]} gxf6 {[%emt 0:00:26]} 23. exf6 {[%emt 0:00:52]} Bf8 {[%emt 0:01:20]} 24. Rd3 {[%emt 0:05:35]} b5 {[%emt 0:02:24]} 25. Rc3 {[%emt 0:02:42]} Qd6 {[%emt 0:01:30]} 26. Bc5 {[%emt 0:02:40]} Qd8 {[%emt 0:01:16]} 27. Bxf8 {[%emt 0:05:16]} Qxf8 {[%emt 0:00:01]} 28. Rh3 {[%emt 0:00:35]} b4 {[%emt 0:00:55]} 29. Qh4 {[%emt 0:01:17]} h6 {[%emt 0:00:54]} 30. Qf4 {[%emt 0:02:55]} Kh7 {[%emt 0:00:20]} 31. Rg3 {[%emt 0:01:38]} Rc4 {[%emt 0:00:32]} 32. Qd2 {[%emt 0:01:39]} Kh8 {[%emt 0:00:57]} 33. Rg7 {[%emt 0:00:55]} Rh4 {[%emt 0:00:05]} 34. Qd3 {[%emt 0:00:37]} Re4 {[%emt 0:00:16]} 35. Qh3 {[%emt 0:00:19]} 1-0

[Event "GER-chT Youth Countries 2018"]
[Site "Wurzburg"]
[Date "2018.10.03"]
[Round "1"]
[White "Browning, Rebecca"]
[Black "Genov, Valentin"]
[Result "1-0"]
[ECO "B21"]
[WhiteElo "1873"]
[BlackElo "1756"]
[Annotator "NA RC"]
[PlyCount "35"]
[EventDate "2018.10.03"]
[EventType "team-tourn"]
[EventCountry "GER"]
[SourceTitle "playchess.com"]
[Source "ChessBase"]
[SourceQuality "1"]
[TimeControl "40/5400+30:1800+30"]

{[%evp 26,35,513,564,556,564,658,530,590,625,951,1002]} 1. e4 {[%emt 0:00:00]} c5 {[%emt 0:00:00]} 2. d4 {[%emt 0:00:30]} cxd4 {[%emt 0:00:30]} 3. c3 {[%emt 0:00:30]} e6 {[%emt 0:01:40]} 4. cxd4 {[%emt 0:01:26]} Nf6 {[%emt 0:03:01]} 5. Nc3 {[%emt 0:03:02]} Bb4 {[%emt 0:01:55]} 6. Bd3 {[%emt 0:01:28]} Qa5 {[%emt 0:04:32]} 7. Nge2 {[%emt 0:02:25]} Nc6 {[%emt 0:01:34]} 8. O-O {[%emt 0:01:20]} b5 {[%emt 0:22:42]} 9. Nxb5 {[%emt 0:10:59]} Nxe4 {[%emt 0:00:39]} 10. Bf4 {[%emt 0:01:22]} O-O {[%emt 0:06:02]} 11. Nc7 {[%emt 0:00:25]} Rb8 {[%emt 0:02:52]} 12. Bxe4 {[%emt 0:00:35]} e5 {[%emt 0:00:11]} 13. dxe5 {[%emt 0:01:06]} Qxc7 {[%emt 0:04:27] [#]} 14. e6 $1 {[%emt 0:00:11]} d6 {[%emt 0:00:04]} 15. Rc1 {[%emt 0:01:09]} Bb7 {[%emt 0:01:07]} 16. exf7+ {[%emt 0:00:19]} Kh8 {[%emt 0:00:50]} 17. a3 {[%emt 0:00:37]} Bc5 {[%emt 0:08:50] [#]} 18. Rxc5 $18 {[%emt 0:00:23]} 1-0

[Event "GER-chT Youth Countries 2018"]
[Site "Wurzburg"]
[Date "2018.10.03"]
[Round "1"]
[White "Koenze, Heike"]
[Black "Lutz, Adam"]
[Result "1-0"]
[ECO "B40"]
[WhiteElo "1845"]
[BlackElo "1787"]
[Annotator "NA"]
[PlyCount "79"]
[EventDate "2018.10.03"]
[EventType "team-tourn"]
[EventCountry "GER"]
[SourceTitle "playchess.com"]
[Source "ChessBase"]
[SourceQuality "1"]
[TimeControl "40/5400+30:1800+30"]

1. e4 {[%emt 0:00:00]} c5 {[%emt 0:00:00]} 2. Nf3 {[%emt 0:00:04]} e6 {[%emt 0:00:00]} 3. d4 {[%emt 0:00:12]} cxd4 {[%emt 0:00:00]} 4. Nxd4 {[%emt 0:00:09]} Nf6 {[%emt 0:00:00]} 5. Bd3 {[%emt 0:02:25]} a6 {[%emt 0:01:22]} 6. a4 {[%emt 0:09:04]} Be7 {[%emt 0:01:00]} 7. Nc3 {[%emt 0:01:33]} d6 {[%emt 0:00:22]} 8. O-O {[%emt 0:01:13]} O-O {[%emt 0:01:04]} 9. Be3 {[%emt 0:04:15] B42: Sizilianisch (Paulsen-Variante)} (9. a5 e5 10. Nb3 Be6 11. Nd5 Nxd5 12. exd5 Bc8 13. Be3 Nd7 14. c4 g6 15. Qd2 f5 16. f3 Nf6 {1-0 (36) Tsydypov,Z (2520)-Tran,M (2335) St Petersburg 2018}) 9... Qc7 {[%emt 0:02:04]} 10. f4 {[%emt 0:02:52]} Nbd7 {[%emt 0:01:31]} 11. Nb3 {[%emt 0:02:38]} b6 {[%emt 0:03:12]} 12. Qe2 {[%emt 0:08:47]} Bb7 {[%emt 0:02:26]} 13. Rad1 {[%emt 0:01:21]} Rfe8 {[%emt 0:03:22]} 14. Bf2 $146 {[%emt 0:04:28]} ({Vorgänger:} 14. Kh1 Nc5 15. Nxc5 bxc5 {0-1 (35) Banegas Gomez,R-Ayza Ballester,J (2315) Ponferrada 1992}) 14... Nc5 {[%emt 0:06:20]} 15. Nxc5 {[%emt 0:01:02]} bxc5 {[%emt 0:00:16]} 16. Bg3 {[%emt 0:08:05]} Qb6 {[%emt 0:02:59]} 17. a5 {[%emt 0:04:47]} Qxa5 {[%emt 0:05:03]} 18. e5 {[%emt 0:00:19]} Nd5 {[%emt 0:05:03]} 19. Nxd5 {[%emt 0:02:00]} exd5 {[%emt 0:01:40]} 20. e6 {[%emt 0:01:51]} Rf8 {[%emt 0:05:11]} 21. c3 {[%emt 0:06:57]} Qb6 {[%emt 0:03:39]} 22. Bb1 {[%emt 0:01:53]} a5 {[%emt 0:04:44]} 23. Rf2 {[%emt 0:05:02]} f5 {[%emt 0:04:26]} 24. Kh1 {[%emt 0:04:19]} g6 {[%emt 0:03:28]} 25. Ba2 {[%emt 0:00:57]} c4 {[%emt 0:02:20]} 26. Rff1 {[%emt 0:00:47]} a4 {[%emt 0:04:13]} ({Better is} 26... Bf6 $17 27. Bf2 Qc7) 27. Bf2 {[%emt 0:02:15]} Qb5 {[%emt 0:02:01]} (27... Qc7 $17) 28. Bd4 $11 {[%emt 0:01:27]} Rab8 {[%emt 0:02:34]} 29. Rd2 {[%emt 0:05:10]} Rbe8 {[%emt 0:05:08]} 30. Bb1 {[%emt 0:02:01]} Bc8 {[%emt 0:03:30]} 31. g4 {[%emt 0:00:28]} Bf6 {[%emt 0:03:18]} 32. gxf5 {[%emt 0:01:51]} Bxd4 {[%emt 0:00:42]} 33. cxd4 {[%emt 0:00:27]} gxf5 {[%emt 0:00:44]} 34. Rg1+ {[%emt 0:01:16]} Kh8 {[%emt 0:00:21]} 35. Bxf5 {[%emt 0:00:43]} Rxf5 {[%emt 0:03:50]} 36. Qg4 {[%emt 0:00:18]} Rf7 {[%emt 0:00:19]} 37. Rdg2 {[%emt 0:00:55]} h6 {[%emt 0:03:29]} 38. Qg8+ {[%emt 0:00:13]} Rxg8 {[%emt 0:00:11]} 39. Rxg8+ {[%emt 0:00:04]} Kh7 {[%emt 0:00:16]} 40. exf7 {[%emt 0:00:09]} 1-0

[Event "GER-chT Youth Countries 2018"]
[Site "Wurzburg"]
[Date "2018.10.03"]
[Round "1"]
[White "Bashylina, Luisa"]
[Black "Ruhmke, Rebecca"]
[Result "1-0"]
[ECO "B01"]
[WhiteElo "1837"]
[BlackElo "1399"]
[Annotator "NA"]
[PlyCount "86"]
[EventDate "2018.10.03"]
[EventType "team-tourn"]
[EventCountry "GER"]
[SourceTitle "playchess.com"]
[Source "ChessBase"]
[SourceQuality "1"]
[TimeControl "40/5400+30:1800+30"]

1. e4 {[%emt 0:00:00]} d5 {[%emt 0:00:00]} 2. exd5 {[%emt 0:00:00]} Nf6 {[%emt 0:00:10]} 3. Nc3 {[%emt 0:00:36]} Nxd5 {[%emt 0:01:05]} 4. Bc4 {[%emt 0:00:45]} Nb6 {[%emt 0:01:53]} 5. Be2 {[%emt 0:03:27]} Nc6 {[%emt 0:03:20]} 6. Nf3 {[%emt 0:00:46]} e5 {[%emt 0:06:01] B02: Alekhine's Defence: Chase Variation and lines with early Nc3} (6... Bf5 7. O-O e6 8. d3 Be7 9. Be3 O-O 10. Re1 Qd7 11. a3 Rad8 12. Qc1 Rfe8 13. Ne4 h6 14. Nfd2 {0-1 (43) Pandurevic,M (2286)-Zelcic,R (2587) Bizovac 2008}) 7. d3 {[%emt 0:05:59]} Bd6 $146 {[%emt 0:08:37]} ({Predecessor:} 7... Be7 8. O-O {½-½ (8) Nogueira,I (2253)-Borges,L (2227) Serra Negra 2002}) 8. Be3 {[%emt 0:04:24]} O-O {[%emt 0:06:02]} 9. O-O {[%emt 0:05:47]} Bf5 {[%emt 0:09:22]} 10. a4 {[%emt 0:04:14]} Re8 {[%emt 0:08:36]} 11. Nd2 {[%emt 0:01:38]} Qf6 {[%emt 0:03:46]} 12. a5 {[%emt 0:03:38]} Nd7 {[%emt 0:00:46]} 13. Nc4 {[%emt 0:02:41]} Nd4 {[%emt 0:08:24]} 14. Bf3 {[%emt 0:09:59]} c6 {[%emt 0:08:15]} 15. Be4 {[%emt 0:01:00]} Bc5 {[%emt 0:07:09]} 16. Qd2 {[%emt 0:09:51]} Qg6 {[%emt 0:03:41]} 17. Kh1 {[%emt 0:01:05]} Rad8 {[%emt 0:03:05]} 18. Rfe1 {[%emt 0:03:17]} a6 {[%emt 0:04:30]} 19. Bxf5 {[%emt 0:01:37]} Nxf5 {[%emt 0:00:42]} 20. Bxc5 {[%emt 0:00:20]} Nxc5 {[%emt 0:00:02]} 21. Nxe5 {[%emt 0:00:15]} Qf6 $16 {[%emt 0:04:53]} 22. Nf3 {[%emt 0:03:57]} Re6 {[%emt 0:03:28]} 23. Rxe6 {[%emt 0:02:03]} Nxe6 {[%emt 0:02:00]} 24. Ne4 {[%emt 0:00:17]} Qxb2 {[%emt 0:04:10]} 25. Re1 {[%emt 0:05:37]} Nfd4 {[%emt 0:01:29]} 26. Nxd4 {[%emt 0:01:23]} Qxd4 {[%emt 0:00:20]} 27. f3 {[%emt 0:01:07]} h6 28. Rb1 {[%emt 0:00:22]} Rd5 {[%emt 0:01:36]} 29. g3 {[%emt 0:02:06]} Rb5 {[%emt 0:00:22]} 30. Rxb5 {[%emt 0:04:22]} cxb5 {[%emt 0:00:03]} 31. Kg2 {[%emt 0:01:34]} Qa4 {[%emt 0:00:49]} 32. Nd6 {[%emt 0:00:35]} Nc5 {[%emt 0:00:33]} 33. Qc3 {[%emt 0:00:46]} Ne6 {[%emt 0:00:30]} 34. Nxb7 {[%emt 0:01:10]} Nd4 {[%emt 0:00:21]} 35. Nc5 {[%emt 0:08:18]} Qxc2+ {[%emt 0:00:24]} 36. Qxc2 {[%emt 0:00:04]} Nxc2 {[%emt 0:00:04]} 37. Nxa6 {[%emt 0:01:16]} b4 {[%emt 0:01:30]} 38. Nc5 {[%emt 0:00:14]} Nd4 {[%emt 0:00:10]} 39. a6 {[%emt 0:00:37]} Nb5 {[%emt 0:00:10]} 40. Kf2 {[%emt 0:00:59]} Kf8 {[%emt 0:00:20]} 41. Ke3 {[%emt 0:31:04]} Ke7 {[%emt 0:30:58]} 42. Nb3 {[%emt 0:00:00]} Ke6 {[%emt 0:00:00]} 43. Nd4+ {[%emt 0:00:00]} Kd5 1-0

[Event "GER-chT Youth Countries 2018"]
[Site "Wurzburg"]
[Date "2018.10.03"]
[Round "1"]
[White "Werner, Denis"]
[Black "Schilay, Eva"]
[Result "1-0"]
[ECO "B07"]
[WhiteElo "1817"]
[BlackElo "1690"]
[Annotator "NA RC"]
[PlyCount "65"]
[EventDate "2018.10.03"]
[EventType "team-tourn"]
[EventCountry "GER"]
[SourceTitle "playchess.com"]
[Source "ChessBase"]
[SourceQuality "1"]
[TimeControl "40/5400+30:1800+30"]

1. e4 d6 2. d4 Nf6 3. Nc3 e5 4. dxe5 dxe5 5. Qxd8+ Kxd8 6. Bc4 Be6 7. Bxe6 fxe6 8. Be3 c6 9. O-O-O+ Kc7 10. f3 Nbd7 11. Nh3 h6 12. Nf2 Bc5 13. Bxc5 Nxc5 14. b4 Ncd7 15. Nd3 b5 16. a4 bxa4 17. Nxa4 a5 18. Nac5 Rhe8 19. c3 axb4 20. cxb4 Ra2 21. Rhg1 g5 22. h3 Re7 23. g4 Rh2 24. Rh1 Rxh1 25. Rxh1 Nxc5 26. bxc5 Nd7 27. Kd2 Re8 28. h4 Rg8 29. hxg5 hxg5 30. Rh6 Rf8 31. Ke3 Rf6 32. Rxf6 Nxf6 33. Nxe5 1-0

[Event "GER-chT Youth Countries 2018"]
[Site "Wurzburg"]
[Date "2018.10.03"]
[Round "1"]
[White "Bardorz, Jana"]
[Black "Hetzner, Hannes"]
[Result "0-1"]
[ECO "C06"]
[WhiteElo "1810"]
[BlackElo "1855"]
[Annotator "NA"]
[PlyCount "78"]
[EventDate "2018.10.03"]
[EventType "team-tourn"]
[EventCountry "GER"]
[SourceTitle "playchess.com"]
[Source "ChessBase"]
[SourceQuality "1"]
[TimeControl "40/5400+30:1800+30"]

1. e4 {[%emt 0:00:00]} e6 {[%emt 0:00:00]} 2. d4 {[%emt 0:00:00]} d5 {[%emt 0:00:00]} 3. Nd2 {[%emt 0:00:00]} Nf6 {[%emt 0:00:00]} 4. e5 {[%emt 0:00:00]} Nfd7 {[%emt 0:00:00]} 5. Bd3 {[%emt 0:00:21]} c5 {[%emt 0:00:07]} 6. c3 {[%emt 0:00:12]} Nc6 {[%emt 0:00:06]} 7. Ne2 {[%emt 0:01:05]} cxd4 {[%emt 0:00:08]} 8. cxd4 {[%emt 0:00:07]} f6 {[%emt 0:00:07]} 9. exf6 {[%emt 0:00:37]} Nxf6 {[%emt 0:00:16]} 10. Nf3 {[%emt 0:00:36]} Bd6 {[%emt 0:00:11]} 11. O-O {[%emt 0:00:49]} Qc7 {[%emt 0:01:04]} 12. Bg5 {[%emt 0:01:19]} O-O {[%emt 0:01:53]} 13. Bh4 {[%emt 0:01:43]} Nh5 {[%emt 0:08:04]} 14. Qc2 {[%emt 0:04:12]} h6 {[%emt 0:01:23]} 15. Bh7+ {[%emt 0:03:12] C06: French Tarrasch: 3...Nf6 4 e5 Nfd7 5 Bd3 main lines} Kh8 {[%emt 0:00:07]} 16. Bg6 {[%emt 0:00:07]} Nf4 {[%emt 0:20:02]} 17. Nxf4 {[%emt 0:07:59]} Bxf4 {[%emt 0:04:51]} (17... Rxf4 18. Bg3 Rxf3 19. gxf3 Qe7 20. Rad1 Bd7 21. Qc3 Rf8 22. Bb1 Kg8 {1-0 (41) Artemiev,V (2653)-Onischuk,V (2615) Martuni 2016}) 18. Bg3 {[%emt 0:04:01]} Bxg3 {[%emt 0:03:45]} 19. fxg3 $146 {[%emt 0:03:05]} ({Predecessor:} 19. hxg3 Qb6 20. Qd2 Rxf3 21. gxf3 Nxd4 22. Kg2 e5 {½-½ (92) Rasulov,V (2392)-Beheshtayeen,A (2178) Urumia 2008}) 19... Qb6 {[%emt 0:04:55]} 20. Ne5 {[%emt 0:12:38]} Rf6 {[%emt 0:20:34]} 21. Nf7+ {[%emt 0:10:20]} Kg8 {[%emt 0:01:38]} 22. Rxf6 {[%emt 0:07:55]} gxf6 {[%emt 0:01:02]} 23. Nxh6+ {[%emt 0:02:39]} Kg7 24. Be8 $11 {[%emt 0:05:54]} Qxd4+ {[%emt 0:04:27]} 25. Kh1 {[%emt 0:01:26]} Ne5 {[%emt 0:03:10]} 26. Rf1 {[%emt 0:08:03]} f5 {[%emt 0:07:05]} 27. Rf4 Qe3 28. Qd1 {[%emt 0:10:08]} Bd7 {[%emt 0:08:31]} 29. Bxd7 {[%emt 0:02:31]} Nxd7 {[%emt 0:00:24]} 30. Rxf5 {[%emt 0:02:01]} Ne5 {[%emt 0:08:59]} 31. h4 {[%emt 0:05:53]} Rc8 {[%emt 0:01:39]} 32. Rg5+ {[%emt 0:03:59]} Ng6 {[%emt 0:00:53]} 33. Ng4 {[%emt 0:01:47]} Qc1 {[%emt 0:00:34]} 34. Qxc1 {[%emt 0:00:06]} Rxc1+ {[%emt 0:00:06]} 35. Kh2 {[%emt 0:00:03]} Kf7 {[%emt 0:00:35]} 36. h5 {[%emt 0:00:24]} Nf8 {[%emt 0:00:46]} 37. h6 {[%emt 0:01:15]} Ng6 {[%emt 0:00:33]} 38. Rh5 {[%emt 0:00:53]} Rc8 {[%emt 0:00:15]} 39. Nf2 {[%emt 0:01:21]} e5 {[%emt 0:00:38]} 0-1

[Event "GER-chT Youth Countries 2018"]
[Site "Wurzburg"]
[Date "2018.10.03"]
[Round "1"]
[White "Metzdorf, Matteo"]
[Black "Puls, Luisa"]
[Result "1-0"]
[ECO "B26"]
[WhiteElo "1806"]
[BlackElo "1456"]
[Annotator "NA"]
[PlyCount "71"]
[EventDate "2018.10.03"]
[EventType "team-tourn"]
[EventCountry "GER"]
[SourceTitle "playchess.com"]
[Source "ChessBase"]
[SourceQuality "1"]
[TimeControl "40/5400+30:1800+30"]

1. e4 {[%emt 0:00:00]} c5 {[%emt 0:00:00]} 2. Nc3 {[%emt 0:00:00]} d6 {[%emt 0:00:00]} 3. g3 {[%emt 0:00:00]} g6 {[%emt 0:00:00]} 4. Bg2 {[%emt 0:00:00]} Bg7 {[%emt 0:00:02]} 5. d3 {[%emt 0:00:10]} Nc6 {[%emt 0:00:23]} 6. Be3 {[%emt 0:00:30]} Rb8 {[%emt 0:00:33]} 7. Qd2 {[%emt 0:00:35]} b5 {[%emt 0:03:28]} 8. f4 {[%emt 0:02:25]} b4 {[%emt 0:01:54]} 9. Nd1 {[%emt 0:00:09]} Nd4 {[%emt 0:09:31] B26: Closed Sicilian: 3 g3, lines with early Be3} (9... e6 10. Nf3 Nge7 11. d4 cxd4 12. Nxd4 Na5 13. Qd3 O-O 14. Nb3 Nac6 15. O-O a5 16. Rf2 a4 17. Nd4 Nxd4 18. Bxd4 {0-1 (41) Bachin,V (2406)-Chigaev,M (2577) St Petersburg 2018}) 10. c3 {[%emt 0:03:23]} bxc3 {[%emt 0:01:54]} 11. bxc3 {[%emt 0:01:16]} Nb5 {[%emt 0:01:19]} 12. Nf3 {[%emt 0:04:43]} f5 $146 {[%emt 0:07:46]} ({Predecessor:} 12... Nf6 13. O-O Ng4 14. d4 Nxe3 15. Qxe3 cxd4 16. cxd4 O-O 17. Nc3 Nxc3 18. Qxc3 Bg4 19. e5 Qd7 20. Rfc1 Rfc8 {½-½ (20) Steil Antoni,F (2122)-Oudot,J (2113) France 2008}) 13. O-O {[%emt 0:07:48]} Nh6 {[%emt 0:06:08]} 14. e5 {[%emt 0:12:46]} Ng4 {[%emt 0:13:15]} 15. d4 {[%emt 0:06:54]} O-O {[%emt 0:10:51]} 16. a4 {[%emt 0:19:09]} Nc7 {[%emt 0:03:40]} 17. Nf2 {[%emt 0:05:07]} Nxe3 {[%emt 0:02:40]} 18. Qxe3 {[%emt 0:00:06]} Nd5 {[%emt 0:02:47]} 19. Qd2 {[%emt 0:02:41]} Qa5 {[%emt 0:05:54]} 20. exd6 {[%emt 0:08:10]} exd6 {[%emt 0:03:07]} 21. Qa2 $15 {[%emt 0:02:23]} (21. Ne5 $5 Be6 22. Bxd5 Bxd5 23. dxc5 Qxc5 24. Nd7 Bxc3 25. Qd1 $11) 21... c4 {[%emt 0:08:54]} 22. Nd2 {[%emt 0:06:16]} Be6 {[%emt 0:03:47]} 23. Nxc4 {[%emt 0:04:19]} Qxc3 {[%emt 0:03:43]} 24. Nxd6 {[%emt 0:01:13]} Qxd4 {[%emt 0:01:04]} 25. Rad1 {[%emt 0:00:43]} Nc7 {[%emt 0:03:00]} 26. Qc2 {[%emt 0:04:45]} Qb6 {[%emt 0:01:30]} 27. Qd3 {[%emt 0:02:26]} Qb4 {[%emt 0:02:19]} 28. Bc6 {[%emt 0:02:25]} Rfd8 {[%emt 0:01:24]} 29. Rb1 {[%emt 0:00:40]} Qc5 {[%emt 0:01:29]} 30. Rxb8 {[%emt 0:00:44]} Rxb8 {[%emt 0:00:08]} 31. Bf3 {[%emt 0:01:17]} Bf8 {[%emt 0:00:46]} 32. Nb7 {[%emt 0:00:31]} Bc4 {[%emt 0:01:30]} 33. Nxc5 {[%emt 0:00:13]} Bxd3 {[%emt 0:00:08]} 34. Ncxd3 {[%emt 0:00:03]} Kg7 {[%emt 0:00:55]} 35. Rc1 {[%emt 0:00:27]} Ne6 {[%emt 0:00:53]} 36. Kg2 {[%emt 0:01:31]} 1-0

[Event "GER-chT Youth Countries 2018"]
[Site "Wurzburg"]
[Date "2018.10.03"]
[Round "1"]
[White "Glinzner, Alva"]
[Black "Block, Timo"]
[Result "1/2-1/2"]
[ECO "C05"]
[WhiteElo "1787"]
[BlackElo "1777"]
[Annotator "NA"]
[PlyCount "108"]
[EventDate "2018.10.03"]
[EventType "team-tourn"]
[EventCountry "GER"]
[SourceTitle "playchess.com"]
[Source "ChessBase"]
[SourceQuality "1"]
[TimeControl "40/5400+30:1800+30"]

1. e4 {[%emt 0:00:00]} e6 {[%emt 0:00:00]} 2. d4 {[%emt 0:00:00]} d5 {[%emt 0:00:00]} 3. Nd2 {[%emt 0:00:00]} Nf6 {[%emt 0:00:20]} 4. e5 {[%emt 0:00:03]} Nfd7 {[%emt 0:00:13]} 5. f4 {[%emt 0:00:28]} c5 {[%emt 0:01:17]} 6. c3 {[%emt 0:00:05]} Nc6 {[%emt 0:01:16]} 7. Ndf3 {[%emt 0:00:14]} Qb6 {[%emt 0:02:02]} 8. g3 {[%emt 0:00:50]} cxd4 {[%emt 0:04:05]} 9. cxd4 {[%emt 0:00:06]} Bb4+ {[%emt 0:02:41]} 10. Kf2 {[%emt 0:00:17]} f6 {[%emt 0:04:10]} 11. Kg2 {[%emt 0:02:42]} O-O {[%emt 0:08:43]} 12. Bd3 {[%emt 0:02:37]} Kh8 {[%emt 0:06:44]} 13. Bc2 {[%emt 0:01:40]} Be7 {[%emt 0:06:39]} 14. a3 {[%emt 0:01:48]} Qc7 {[%emt 0:06:07]} 15. Be3 {[%emt 0:15:27]} Nb6 {[%emt 0:02:21]} 16. b3 {[%emt 0:01:05]} f5 {[%emt 0:03:59]} 17. Ng5 {[%emt 0:13:44]} h6 {[%emt 0:04:57]} 18. h4 {[%emt 0:05:10]} Bd7 {[%emt 0:08:44]} 19. N5h3 {[%emt 0:09:08]} g6 {[%emt 0:03:42]} 20. h5 {[%emt 0:03:20]} Rg8 {[%emt 0:03:17]} 21. hxg6 {[%emt 0:13:04]} Rxg6 {[%emt 0:00:09]} 22. Ne2 {[%emt 0:01:06]} Rag8 {[%emt 0:03:17]} 23. Kf3 {[%emt 0:02:54]} Kg7 {[%emt 0:03:11]} 24. Nf2 {[%emt 0:06:14]} Kf7 {[%emt 0:03:21]} 25. Rh3 {[%emt 0:03:03]} Bf8 {[%emt 0:04:17]} 26. Qh1 {[%emt 0:03:32]} Nxe5+ {[%emt 0:02:38]} 27. fxe5 {[%emt 0:00:57]} Qxc2 {[%emt 0:00:36]} 28. Rb1 {[%emt 0:06:55]} Bb5 {[%emt 0:02:50]} 29. Nf4 {[%emt 0:01:08]} Rg4 {[%emt 0:05:12]} 30. a4 {[%emt 0:01:59]} Rxf4+ {[%emt 0:02:35]} 31. Kxf4 {[%emt 0:00:58]} Be2 {[%emt 0:02:53]} 32. Rc1 {[%emt 0:02:55]} Qxb3 {[%emt 0:01:09]} 33. Qe1 {[%emt 0:00:22]} Qd3 {[%emt 0:00:23]} 34. Rh4 {[%emt 0:01:46]} h5 {[%emt 0:01:07]} 35. Rc7+ {[%emt 0:00:30]} Ke8 {[%emt 0:00:21]} 36. Rh7 {[%emt 0:00:20]} Qc4 {[%emt 0:01:17]} 37. Qd2 {[%emt 0:01:18]} Be7 {[%emt 0:01:03]} 38. Rxe7+ {[%emt 0:00:15]} Kxe7 {[%emt 0:00:05]} 39. Qc1 {[%emt 0:00:41]} Qxc1 {[%emt 0:00:29]} 40. Bxc1 {[%emt 0:00:03]} Nxa4 {[%emt 0:00:13]} 41. Ba3+ {[%emt 0:30:56]} Kd7 {[%emt 0:03:40]} 42. Bb4 {[%emt 0:00:00]} Bg4 {[%emt 0:02:26]} 43. Nd3 {[%emt 0:00:00]} b6 {[%emt 0:01:36]} 44. Bd2 {[%emt 0:00:00]} Rc8 {[%emt 0:01:51]} 45. Ke3 {[%emt 0:00:00]} a5 {[%emt 0:01:47]} 46. Rh1 {[%emt 0:00:00]} Nc3 {[%emt 0:01:41]} 47. Ra1 {[%emt 0:00:00]} Ne4 {[%emt 0:01:29]} 48. Be1 {[%emt 0:00:00]} Rc2 {[%emt 0:01:23]} 49. Nf4 {[%emt 0:00:00]} Rb2 {[%emt 0:00:56]} 50. Ra3 {[%emt 0:00:00]} Rc2 {[%emt 0:01:51]} 51. Rb3 {[%emt 0:00:00]} Rc6 {[%emt 0:01:23]} 52. Ra3 {[%emt 0:00:00]} Kc7 {[%emt 0:01:12]} 53. Ra1 {[%emt 0:00:00]} Kb7 {[%emt 0:02:23]} 54. Nd3 {[%emt 0:00:00]} Nc3 {[%emt 0:02:15]} 1/2-1/2